[Event "FIDE World Rapid-ch Open 2018"]
[White "Vastrukhin, Oleg"]
[Black "Antipov, Mikhail Al."]
[Site "St. Petersburg"]
[Round "3.53"]
[Annotator "ChessBase"]
[Result "1/2-1/2"]
[Date "2018.12.26"]
[WhiteElo "2413"]
[BlackElo "2589"]
[PlyCount "80"]
[TimeControl "900+10"]

1. Nf3 {[%emt 0:0:0]} Nf6 {[%emt 0:0:0]} 2. g3 {[%emt 0:0:0]} d5 {[%emt 0:0:0]
} 3. Bg2 {[%emt 0:0:0]} c6 {[%emt 0:0:0]} 4. 0-0 {[%emt 0:0:0]} h6 {[%emt 0:0:4]} 5. d3 {[%emt 0:0:25]} Bf5 {[%emt 0:0:1]} 6. c4 {[%emt 0:0:4]
} dxc4 {[%emt 0:0:2]} 7. dxc4 {[%emt 0:0:1]} Qxd1 {[%emt 0:0:0]} 8. Rxd1 {[%emt 0:0:1]} Bc2 {[%emt 0:0:9]} 9. Rd2 {[%emt 0:0:19]} Bh7 {[%emt 0:0:8]} 10. b3 {[%emt 0:0:11]} e6 {[%emt 0:0:9]} 11. Bb2 {[%emt 0:0:17]
} Bb4 {[%emt 0:0:39]} 12. Rd1 {[%emt 0:1:46]} a5 {[%emt 0:0:0]} 13. Ne5 {[%emt 0:1:4]} Ke7 {[%emt 0:3:9]} 14. Nc3 {[%emt 0:0:45]} Nbd7 {[%emt 0:1:2]} 15. Nxd7 {[%emt 0:1:16]} Nxd7 {[%emt 0:0:2]} 16. Na4 {[%emt 0:0:22]
} f6 {[%emt 0:0:45]} 17. a3 {[%emt 0:0:52]} Bd6 {[%emt 0:0:1]
} 18. Rd2 {[%emt 0:0:2]} Nc5 {[%emt 0:1:20]} 19. Nxc5 {[%emt 0:0:14]} Bxc5 {[%emt 0:0:2]} 20. Rad1 {[%emt 0:2:15]} Rhd8 {[%emt 0:0:5]} 21. Rxd8 {[%emt 0:0:14]
} Rxd8 {[%emt 0:0:2]} 22. Rxd8 {[%emt 0:0:1]} Kxd8 {[%emt 0:0:0]} 23. Bc3 {[%emt 0:0:1]} Bxa3 {[%emt 0:1:36]} 24. Bxa5+ {[%emt 0:0:0]} Kd7 {[%emt 0:0:1]} 25. Bc3 {[%emt 0:1:23]} Bc2 {[%emt 0:1:20]} 26. b4 {[%emt 0:0:3]} Kc7 {[%emt 0:0:11]} 27. e3 {[%emt 0:2:19]} e5 {[%emt 0:0:0]} 28. f4 {[%emt 0:1:15]} e4 {[%emt 0:1:14]} 29. Kf2 {[%emt 0:1:32]} c5 {[%emt 0:0:37]
} 30. bxc5 {[%emt 0:1:5]} Kc6 {[%emt 0:0:8]} 31. Bd4 {[%emt 0:1:0]
} Bd3 {[%emt 0:0:40]} 32. Bf1 {[%emt 0:0:32]} Bxf1 {[%emt 0:0:0]} 33. Kxf1 {[%emt 0:0:1]} Bxc5 {[%emt 0:0:1]} 34. f5 {[%emt 0:0:29]} h5 {[%emt 0:1:21]} 35. Ke2 {[%emt 0:0:16]} b5 {[%emt 0:0:35]} 36. cxb5+ Kxb5 {[%emt 0:0:1]
} 37. Bc3 {[%emt 0:0:11]} Kc4 {[%emt 0:0:7]} 38. Be1 {[%emt 0:0:0]} Bb4 {[%emt 0:1:47]} 39. Bf2 {[%emt 0:0:2]} Bd6 {[%emt 0:0:42]} 40. h3 {[%emt 0:0:5]} Kd5 {[%emt 0:0:36]} 1/2-1/2

[Event "FIDE World Rapid-ch Open 2018"]
[White "Vlassov, Nikolai"]
[Black "Sakaev, Konstantin"]
[Site "St. Petersburg"]
[Round "3.54"]
[Annotator "ChessBase"]
[Result "0-1"]
[Date "2018.12.26"]
[WhiteElo "2401"]
[BlackElo "2584"]
[PlyCount "86"]
[TimeControl "900+10"]

1. e4 {[%emt 0:0:0]} c5 {[%emt 0:0:0]} 2. c3 {[%emt 0:0:0]} g6 {[%emt 0:0:0]} 3. d4 {[%emt 0:0:0]} cxd4 {[%emt 0:0:2]} 4. cxd4 {[%emt 0:0:0]} d5 {[%emt 0:0:1]} 5. e5 {[%emt 0:0:0]} Nc6 {[%emt 0:0:4]} 6. Nc3 {[%emt 0:0:3]
} Bg7 {[%emt 0:0:46]} 7. Bf4 {[%emt 0:0:5]} Nh6 {[%emt 0:0:0]} 8. Qd2 {[%emt 0:0:3]} Nf5 {[%emt 0:0:10]} 9. Nf3 {[%emt 0:0:1]} h5 {[%emt 0:0:55]
} 10. Bb5 {[%emt 0:0:4]} f6 {[%emt 0:1:50]} 11. 0-0 {[%emt 0:0:0]} g5 {[%emt 0:3:16]} 12. Be3 {[%emt 0:1:9]} 0-0 {[%emt 0:1:11]} 13. exf6 {[%emt 0:2:7]} exf6 {[%emt 0:0:2]} 14. Rac1 {[%emt 0:0:28]} Nce7 {[%emt 0:0:15]
} 15. Ba4 {[%emt 0:0:24]} Nd6 {[%emt 0:0:18]} 16. Bb3 {[%emt 0:0:0]} Be6 {[%emt 0:0:7]} 17. Qe2 {[%emt 0:0:52]} Bf7 {[%emt 0:0:41]} 18. Ne1 {[%emt 0:0:31]} Rc8 {[%emt 0:0:32]} 19. Nd3 {[%emt 0:0:23]} Nc4 {[%emt 0:0:16]
} 20. Nb4 {[%emt 0:1:3]} a5 {[%emt 0:2:26]} 21. Nbxd5 {[%emt 0:0:32]
} Nxd5 {[%emt 0:0:12]} 22. Nxd5 {[%emt 0:0:38]} Qxd5 {[%emt 0:0:0]} 23. h4 {[%emt 0:0:24]} gxh4 {[%emt 0:0:14]} 24. Qd3 {[%emt 0:0:11]} Nxb2 {[%emt 0:1:26]} 25. Qb1 {[%emt 0:0:43]} Nc4 {[%emt 0:0:2]} 26. Rc3 {[%emt 0:0:12]
} a4 {[%emt 0:0:31]} 27. Bxa4 {[%emt 0:0:23]} Nxe3 {[%emt 0:0:0]} 28. Rxe3 {[%emt 0:0:4]} Qxd4 {[%emt 0:0:11]} 29. Re4 {[%emt 0:0:8]} Qd5 {[%emt 0:0:46]} 30. Bb3 {[%emt 0:1:29]} Qg5 {[%emt 0:0:12]} 31. Re7 {[%emt 0:0:2]
} Bxb3 {[%emt 0:0:15]} 32. Qxb3+ {[%emt 0:0:1]} Kh8 {[%emt 0:0:0]} 33. Qxb7 {[%emt 0:0:2]} Rg8 {[%emt 0:0:14]} 34. Qf3 {[%emt 0:2:49]} Qg4 {[%emt 0:0:15]} 35. Qe3 {[%emt 0:0:24]} Bf8 {[%emt 0:1:4]} 36. g3 {[%emt 0:0:53]
} hxg3 {[%emt 0:0:4]} 37. fxg3 {[%emt 0:0:21]} Qxg3+ {[%emt 0:0:0]} 38. Qxg3 {[%emt 0:0:2]} Rxg3+ {[%emt 0:0:7]} 39. Kh2 {[%emt 0:0:0]} Bxe7 {[%emt 0:0:7]} 40. Kxg3 {[%emt 0:0:12]} Kg7 {[%emt 0:0:8]} 41. a4 {[%emt 0:0:0]} Rc3+ {[%emt 0:0:4]} 42. Kh4 {[%emt 0:0:0]} f5+ {[%emt 0:0:13]
} 43. Kxh5 {[%emt 0:0:0]} Rh3# {[%emt 0:0:3]} 0-1

[Event "FIDE World Rapid-ch Open 2018"]
[White "Drygalov, Andrey"]
[Black "Sarana, Alexey"]
[Site "St. Petersburg"]
[Round "3.55"]
[Annotator "ChessBase"]
[Result "0-1"]
[Date "2018.12.26"]
[WhiteElo "2481"]
[BlackElo "2618"]
[PlyCount "80"]
[TimeControl "900+10"]

1. Nf3 {[%emt 0:0:0]} Nf6 {[%emt 0:0:1]} 2. c4 {[%emt 0:0:0]} e6 {[%emt 0:0:14]
} 3. b3 {[%emt 0:0:11]} Be7 {[%emt 0:0:6]} 4. Bb2 {[%emt 0:0:0]} d5 {[%emt 0:0:1]} 5. g3 {[%emt 0:0:40]} 0-0 {[%emt 0:0:3]} 6. Bg2 {[%emt 0:0:1]
} c5 {[%emt 0:0:3]} 7. cxd5 {[%emt 0:0:29]} Nxd5 {[%emt 0:0:0]} 8. 0-0 {[%emt 0:0:10]} Nc6 {[%emt 0:0:2]} 9. d4 {[%emt 0:0:57]} b6 {[%emt 0:0:36]
} 10. Nc3 {[%emt 0:1:4]} Nxc3 {[%emt 0:2:25]} 11. Bxc3 {[%emt 0:0:1]
} Bb7 {[%emt 0:0:5]} 12. dxc5 {[%emt 0:0:38]} Bxc5 {[%emt 0:0:0]} 13. Ne5 {[%emt 0:1:51]} Qc7 {[%emt 0:0:40]} 14. Qd7 {[%emt 0:0:17]} Rac8 {[%emt 0:0:10]} 15. Qxc7 {[%emt 0:0:35]} Rxc7 {[%emt 0:0:1]} 16. Rfd1 {[%emt 0:0:4]} Nb8 {[%emt 0:2:58]} 17. Bxb7 {[%emt 0:0:30]} Rxb7 {[%emt 0:0:0]} 18. Nd3 {[%emt 0:2:3]} Be7 {[%emt 0:0:5]} 19. Rac1 {[%emt 0:0:6]} f6 {[%emt 0:0:24]} 20. Bb4 {[%emt 0:0:50]} Kf7 {[%emt 0:0:4]} 21. Bxe7 {[%emt 0:0:45]
} Kxe7 {[%emt 0:0:2]} 22. Nb4 {[%emt 0:0:1]} Rd8 {[%emt 0:0:0]} 23. Rxd8 {[%emt 0:0:10]} Kxd8 {[%emt 0:0:2]} 24. Nc6+ {[%emt 0:0:2]} Nxc6 {[%emt 0:0:1]} 25. Rxc6 {[%emt 0:0:1]} Kd7 {[%emt 0:0:4]} 26. Rc2 {[%emt 0:0:3]
} b5 {[%emt 0:0:29]} 27. f4 {[%emt 0:0:26]} Rc7 {[%emt 0:1:11]
} 28. Rxc7+ {[%emt 0:1:49]} Kxc7 {[%emt 0:0:1]} 29. Kf2 {[%emt 0:0:4]} Kc6 {[%emt 0:0:1]} 30. Ke3 {[%emt 0:0:8]} Kc5 {[%emt 0:0:1]} 31. a3 {[%emt 0:0:0]} Kd5 {[%emt 0:0:14]} 32. Kd3 {[%emt 0:0:30]} f5 {[%emt 0:0:2]} 33. b4 {[%emt 0:1:0]} e5 {[%emt 0:1:38]} 34. h3 {[%emt 0:2:39]} exf4 {[%emt 0:0:0]} 35. gxf4 {[%emt 0:0:1]} a6 {[%emt 0:0:48]} 36. h4 {[%emt 0:2:19]} g6 {[%emt 0:0:6]} 37. e3 {[%emt 0:0:27]} h6 {[%emt 0:0:8]} 38. Kd2 {[%emt 0:0:11]
} Kc4 {[%emt 0:0:28]} 39. Ke2 {[%emt 0:0:11]} h5 {[%emt 0:0:0]} 40. Kd2 {[%emt 0:0:10]} Kb3 {[%emt 0:0:2]} 0-1

[Event "FIDE World Rapid-ch Open 2018"]
[White "Piorun, Kacper"]
[Black "Gutenev, Alexander"]
[Site "St. Petersburg"]
[Round "3.56"]
[Annotator "ChessBase"]
[Result "1/2-1/2"]
[Date "2018.12.26"]
[WhiteElo "2634"]
[BlackElo "2456"]
[PlyCount "75"]
[TimeControl "900+10"]

1. e4 {[%emt 0:0:0]} c5 {[%emt 0:0:0]} 2. Nc3 {[%emt 0:0:0]} Nc6 {[%emt 0:0:0]
} 3. g3 {[%emt 0:0:0]} g6 {[%emt 0:0:0]} 4. Bg2 {[%emt 0:0:0]} Bg7 {[%emt 0:0:0]} 5. d3 {[%emt 0:0:0]} Rb8 {[%emt 0:0:0]} 6. Be3 {[%emt 0:0:7]
} b5 {[%emt 0:0:2]} 7. Qd2 {[%emt 0:0:11]} b4 {[%emt 0:0:2]} 8. Nd1 {[%emt 0:0:1]} d6 {[%emt 0:0:6]} 9. Ne2 {[%emt 0:0:12]} Nd4 {[%emt 0:0:17]
} 10. 0-0 {[%emt 0:0:16]} e6 {[%emt 0:0:20]} 11. Nc1 {[%emt 0:0:0]} Ne7 {[%emt 0:1:17]} 12. c3 {[%emt 0:0:13]} bxc3 {[%emt 0:0:1]} 13. bxc3 {[%emt 0:0:2]} Ndc6 {[%emt 0:0:9]} 14. Bh6 {[%emt 0:0:4]} 0-0 {[%emt 0:0:9]
} 15. Bxg7 {[%emt 0:0:2]} Kxg7 {[%emt 0:0:1]} 16. Ne3 {[%emt 0:0:32]
} a5 {[%emt 0:4:11]} 17. Ne2 {[%emt 0:0:48]} Ba6 {[%emt 0:0:0]} 18. f4 {[%emt 0:1:5]} f5 {[%emt 0:0:3]} 19. exf5 {[%emt 0:2:30]} gxf5 {[%emt 0:2:40]} 20. g4 {[%emt 0:1:34]} d5 {[%emt 0:1:24]} 21. gxf5 {[%emt 0:0:0]} exf5 {[%emt 0:0:3]} 22. Ng3 {[%emt 0:0:58]} Qd7 {[%emt 0:2:14]} 23. Rfe1 {[%emt 0:1:24]} d4 {[%emt 0:1:1]} 24. Nc4 {[%emt 0:0:19]} Ng6 {[%emt 0:1:10]
} 25. Ne5 {[%emt 0:2:23]} Ncxe5 {[%emt 0:0:9]} 26. fxe5 {[%emt 0:0:1]
} dxc3 {[%emt 0:0:28]} 27. Nh5+ {[%emt 0:1:5]} Kh8 {[%emt 0:0:0]} 28. Qxc3 {[%emt 0:0:25]} Qd4+ {[%emt 0:0:13]} 29. Qxd4 {[%emt 0:0:0]} cxd4 {[%emt 0:0:1]} 30. Rac1 Rbc8 {[%emt 0:2:55]} 31. Rxc8 {[%emt 0:0:0]} Rxc8 {[%emt 0:0:1]} 32. e6 {[%emt 0:0:13]} Bxd3 {[%emt 0:0:14]} 33. Nf6 {[%emt 0:0:10]} Kg7 {[%emt 0:0:7]} 34. Nd5 {[%emt 0:0:6]} Re8 {[%emt 0:0:25]
} 35. Nc7 {[%emt 0:0:14]} Re7 {[%emt 0:0:0]} 36. Nd5 {[%emt 0:0:0]} Re8 {[%emt 0:0:1]} 37. Nc7 {[%emt 0:0:9]} Re7 {[%emt 0:0:1]} 38. Nd5 1/2-1/2

[Event "FIDE World Rapid-ch Open 2018"]
[White "Makarov, Marat"]
[Black "Frolyanov, Dmitry"]
[Site "St. Petersburg"]
[Round "3.57"]
[Annotator "ChessBase"]
[Result "1/2-1/2"]
[Date "2018.12.26"]
[WhiteElo "2505"]
[BlackElo "2517"]
[PlyCount "138"]
[TimeControl "900+10"]

1. Nf3 {[%emt 0:0:0]} d5 {[%emt 0:0:0]} 2. e3 {[%emt 0:0:0]} Nf6 {[%emt 0:0:0]
} 3. b3 {[%emt 0:0:0]} g6 {[%emt 0:0:30]} 4. Bb2 {[%emt 0:0:0]} Bg7 {[%emt 0:0:2]} 5. c4 {[%emt 0:0:2]} c6 {[%emt 0:0:22]} 6. Be2 {[%emt 0:0:9]
} 0-0 {[%emt 0:0:7]} 7. 0-0 {[%emt 0:0:3]} dxc4 {[%emt 0:0:0]} 8. bxc4 {[%emt 0:0:8]} c5 {[%emt 0:0:7]} 9. Qb3 {[%emt 0:0:27]} b6 {[%emt 0:1:1]
} 10. Nc3 {[%emt 0:2:42]} Bb7 {[%emt 0:0:25]} 11. Rad1 {[%emt 0:0:3]
} Nc6 {[%emt 0:0:40]} 12. Rfe1 {[%emt 0:4:3]} Qc8 {[%emt 0:0:0]} 13. Nd5 {[%emt 0:0:31]} Nxd5 {[%emt 0:2:19]} 14. Bxg7 {[%emt 0:1:1]} Kxg7 {[%emt 0:0:3]} 15. cxd5 {[%emt 0:0:4]} Na5 {[%emt 0:0:4]} 16. Qc3+ {[%emt 0:0:19]
} Kg8 {[%emt 0:0:6]} 17. e4 {[%emt 0:0:21]} e6 {[%emt 0:0:58]
} 18. Ne5 {[%emt 0:0:40]} exd5 {[%emt 0:1:53]} 19. exd5 {[%emt 0:0:25]} Qd8 {[%emt 0:1:3]} 20. Ng4 {[%emt 0:1:36]} f6 {[%emt 0:0:3]} 21. Bf3 {[%emt 0:0:0]} Kg7 {[%emt 0:1:54]} 22. Qe3 {[%emt 0:3:17]} Nc4 {[%emt 0:0:50]} 23. Qf4 {[%emt 0:0:33]} Nd6 {[%emt 0:0:34]} 24. Ne3 {[%emt 0:0:18]} Nf7 {[%emt 0:0:49]
} 25. d4 {[%emt 0:0:9]} c4 {[%emt 0:0:29]} 26. Nxc4 {[%emt 0:0:0]} Bxd5 {[%emt 0:0:13]} 27. Ne3 {[%emt 0:0:16]} Bxf3 {[%emt 0:0:14]} 28. Qxf3 {[%emt 0:0:2]} Rc8 {[%emt 0:0:12]} 29. h4 {[%emt 0:0:2]} Qd6 {[%emt 0:0:48]
} 30. Qg4 {[%emt 0:0:49]} Nh6 {[%emt 0:0:28]} 31. Qf3 {[%emt 0:0:0]} Rc7 {[%emt 0:0:30]} 32. Nd5 {[%emt 0:0:42]} Rcf7 {[%emt 0:0:17]} 33. Nf4 {[%emt 0:0:3]} Kg8 {[%emt 0:1:18]} 34. Ne6 {[%emt 0:0:14]} Rc8 {[%emt 0:0:22]
} 35. d5 {[%emt 0:0:2]} Nf5 {[%emt 0:0:7]} 36. h5 {[%emt 0:0:0]} Ne7 {[%emt 0:0:38]} 37. Nf4 {[%emt 0:0:30]} Re8 {[%emt 0:0:8]} 38. Re6 {[%emt 0:0:3]} Qd7 {[%emt 0:0:8]} 39. hxg6 {[%emt 0:0:6]} Nxg6 {[%emt 0:0:9]
} 40. Rde1 {[%emt 0:0:14]} Rd8 {[%emt 0:0:6]} 41. Nh5 {[%emt 0:0:7]
} f5 {[%emt 0:0:19]} 42. Nf6+ {[%emt 0:0:10]} Rxf6 {[%emt 0:0:0]} 43. Rxf6 {[%emt 0:0:1]} Qxd5 {[%emt 0:0:2]} 44. Rxf5 {[%emt 0:0:8]} Qxa2 {[%emt 0:0:3]} 45. Qe4 {[%emt 0:0:11]} Qb3 {[%emt 0:0:24]} 46. Rf3 {[%emt 0:0:6]
} Qa2 {[%emt 0:0:10]} 47. Re2 {[%emt 0:0:11]} Qa1+ {[%emt 0:0:0]} 48. Kh2 {[%emt 0:0:2]} Qg7 {[%emt 0:0:4]} 49. Qe6+ {[%emt 0:0:6]} Kh8 {[%emt 0:0:14]} 50. Qf6 {[%emt 0:0:2]} Qxf6 {[%emt 0:0:0]} 51. Rxf6 {[%emt 0:0:1]
} Kg7 {[%emt 0:0:0]} 52. Rc6 {[%emt 0:0:1]} Rd7 {[%emt 0:0:0]} 53. Rec2 {[%emt 0:0:1]} Kf7 {[%emt 0:0:35]} 54. Rc7 {[%emt 0:0:4]} Ke7 {[%emt 0:0:2]} 55. Kg3 {[%emt 0:0:12]} a5 {[%emt 0:0:4]} 56. R7c6 {[%emt 0:0:10]
} Rd3+ {[%emt 0:0:15]} 57. f3 {[%emt 0:0:3]} Rb3 {[%emt 0:0:0]} 58. Rc7+ {[%emt 0:0:6]} Kd6 {[%emt 0:0:26]} 59. Rxh7 {[%emt 0:0:4]} Ne5 {[%emt 0:0:5]} 60. Rh6+ {[%emt 0:0:7]} Kd5 {[%emt 0:0:6]} 61. Rh5 {[%emt 0:0:4]
} Kd4 {[%emt 0:0:7]} 62. Rh8 {[%emt 0:0:56]} b5 {[%emt 0:0:0]} 63. Rd8+ {[%emt 0:0:20]} Ke3 {[%emt 0:0:2]} 64. Rd5 {[%emt 0:0:35]} Nc4 {[%emt 0:0:4]} 65. Rc1 {[%emt 0:0:16]} Ke2 {[%emt 0:0:2]} 66. Rc2+ {[%emt 0:0:14]
} Ke3 {[%emt 0:0:1]} 67. Rc1 {[%emt 0:0:25]} Ke2 {[%emt 0:0:0]} 68. Rc2+ {[%emt 0:0:20]} Ke3 {[%emt 0:0:1]} 69. Rc1 {[%emt 0:0:1]} Ke2 {[%emt 0:0:1]} 1/2-1/2

[Event "FIDE World Rapid-ch Open 2018"]
[White "Rakhmanov, Aleksandr"]
[Black "Maghsoodloo, Parham"]
[Site "St. Petersburg"]
[Round "3.58"]
[Annotator "ChessBase"]
[Result "1-0"]
[Date "2018.12.26"]
[WhiteElo "2629"]
[BlackElo "2688"]
[PlyCount "161"]
[TimeControl "900+10"]

1. c4 {[%emt 0:0:0]} g6 {[%emt 0:0:0]} 2. Nc3 {[%emt 0:0:0]} Bg7 {[%emt 0:0:0]
} 3. g3 {[%emt 0:0:0]} e5 {[%emt 0:0:4]} 4. Bg2 {[%emt 0:0:0]} d6 {[%emt 0:0:6]} 5. d3 {[%emt 0:0:26]} f5 {[%emt 0:0:5]} 6. e4 {[%emt 0:0:3]
} Nf6 {[%emt 0:0:13]} 7. Nge2 {[%emt 0:0:5]} 0-0 {[%emt 0:0:0]} 8. h3 {[%emt 0:0:53]} a5 {[%emt 0:0:41]} 9. Be3 {[%emt 0:0:13]} Na6 {[%emt 0:0:9]
} 10. Qd2 {[%emt 0:1:35]} fxe4 {[%emt 0:1:17]} 11. dxe4 {[%emt 0:0:10]
} Nc5 {[%emt 0:0:30]} 12. 0-0 {[%emt 0:0:26]} b6 {[%emt 0:0:0]} 13. b3 {[%emt 0:1:24]} Bb7 {[%emt 0:0:6]} 14. Qc2 {[%emt 0:0:9]} Ne6 {[%emt 0:0:23]} 15. f4 {[%emt 0:0:46]} exf4 {[%emt 0:1:45]} 16. gxf4 {[%emt 0:0:22]
} Nd7 {[%emt 0:2:27]} 17. Rad1 {[%emt 0:0:56]} Qe8 {[%emt 0:0:0]} 18. Nd5 {[%emt 0:1:24]} Rc8 {[%emt 0:0:27]} 19. Ng3 {[%emt 0:0:37]} Kh8 {[%emt 0:2:15]} 20. Qd2 {[%emt 0:0:16]} Nec5 {[%emt 0:0:44]} 21. Bd4 {[%emt 0:0:27]
} Qf7 {[%emt 0:0:9]} 22. e5 {[%emt 0:0:50]} c6 {[%emt 0:1:1]
} 23. Bxc5 {[%emt 0:3:15]} Nxc5 {[%emt 0:0:56]} 24. Nxb6 {[%emt 0:0:9]} Rcd8 {[%emt 0:0:0]} 25. exd6 {[%emt 0:0:29]} Ne6 {[%emt 0:0:54]} 26. Ne2 {[%emt 0:0:37]
} c5 {[%emt 0:0:17]} 27. d7 {[%emt 0:0:46]} Nd4 {[%emt 0:0:47]
} 28. Nc3 {[%emt 0:1:49]} Qe6 {[%emt 0:0:9]} 29. Bxb7 {[%emt 0:0:46]} Qxb6 {[%emt 0:0:4]} 30. Bc8 {[%emt 0:0:30]} g5 {[%emt 0:0:1]} 31. Nd5 {[%emt 0:0:0]} Qd6 {[%emt 0:0:39]} 32. f5 {[%emt 0:0:23]} Nxf5 {[%emt 0:0:8]} 33. Qxg5 {[%emt 0:0:14]} Bd4+ {[%emt 0:1:47]} 34. Kg2 {[%emt 0:0:2]} Rg8 {[%emt 0:0:21]
} 35. Rxf5 {[%emt 0:0:1]} h6 {[%emt 0:0:16]} 36. Qg4 {[%emt 0:0:0]} Qe6 {[%emt 0:0:3]} 37. Kf3 {[%emt 0:0:21]} Rxg4 {[%emt 0:0:15]} 38. hxg4 {[%emt 0:0:1]} a4 {[%emt 0:0:3]} 39. Rh1 {[%emt 0:0:23]} Kg7 {[%emt 0:0:6]
} 40. Rf4 {[%emt 0:0:5]} axb3 {[%emt 0:0:3]} 41. axb3 {[%emt 0:0:0]
} Qd6 {[%emt 0:0:13]} 42. Re1 {[%emt 0:0:9]} Qb8 {[%emt 0:0:0]} 43. Re7+ {[%emt 0:0:9]} Kg6 {[%emt 0:0:1]} 44. b4 {[%emt 0:0:25]} Qa8 {[%emt 0:0:1]} 45. Re6+ {[%emt 0:0:2]} Kg7 {[%emt 0:0:0]} 46. Ra6 {[%emt 0:0:7]
} Qb8 {[%emt 0:0:1]} 47. Re6 {[%emt 0:0:24]} Qa7 {[%emt 0:0:0]} 48. bxc5 {[%emt 0:0:6]} Qa3+ {[%emt 0:0:1]} 49. Ke4 {[%emt 0:0:2]} Bxc5 {[%emt 0:0:2]} 50. Re8 {[%emt 0:0:20]} Qa5 {[%emt 0:1:31]} 51. Rxd8 {[%emt 0:0:12]
} Qxd8 {[%emt 0:0:0]} 52. Kf3 {[%emt 0:0:4]} Qa5 {[%emt 0:0:0]} 53. Re4 {[%emt 0:0:15]} Qa3+ {[%emt 0:0:9]} 54. Ne3 {[%emt 0:0:10]} Bb6 {[%emt 0:0:0]} 55. Re6 {[%emt 0:0:13]} Bc7 {[%emt 0:0:25]} 56. Re8 {[%emt 0:0:10]
} Qd3 {[%emt 0:0:2]} 57. Re7+ {[%emt 0:0:10]} Kf6 {[%emt 0:0:0]} 58. Re6+ {[%emt 0:0:3]} Kg5 {[%emt 0:0:3]} 59. Rc6 {[%emt 0:0:6]} Qd4 {[%emt 0:0:20]} 60. Rxc7 {[%emt 0:0:19]} Qf4+ {[%emt 0:0:1]} 61. Ke2 {[%emt 0:0:1]
} Qxc7 {[%emt 0:0:2]} 62. Kd3 {[%emt 0:0:4]} Qd8 {[%emt 0:0:0]} 63. c5 {[%emt 0:0:5]} Kf6 {[%emt 0:0:9]} 64. Nd5+ {[%emt 0:0:13]} Kf7 {[%emt 0:0:26]} 65. Nb4 {[%emt 0:0:19]} Qf6 {[%emt 0:0:28]} 66. Kc4 {[%emt 0:0:6]
} Qf1+ {[%emt 0:0:16]} 67. Kd5 {[%emt 0:0:8]} Qf6 {[%emt 0:0:0]} 68. Nc6 {[%emt 0:0:7]} Qf3+ {[%emt 0:0:9]} 69. Kd6 {[%emt 0:0:2]} Qd3+ {[%emt 0:0:4]} 70. Kc7 {[%emt 0:0:11]} Qg3+ {[%emt 0:0:1]} 71. Kb7 {[%emt 0:0:23]
} Qb3+ {[%emt 0:0:2]} 72. Ka7 {[%emt 0:0:22]} Qa3+ {[%emt 0:0:0]} 73. Ba6 {[%emt 0:0:9]} Qxc5+ {[%emt 0:0:9]} 74. Kb7 {[%emt 0:0:2]
} h5 {[%emt 0:0:9]} 75. gxh5 {[%emt 0:0:9]} Qxh5 {[%emt 0:0:12]} 76. d8=Q {[%emt 0:0:3]} Qc5 {[%emt 0:0:9]} 77. Bc4+ {[%emt 0:0:7]} Kg6 {[%emt 0:0:0]} 78. Ne7+ {[%emt 0:0:22]} Kf6 {[%emt 0:0:11]} 79. Nd5+ {[%emt 0:0:9]
} Ke5 {[%emt 0:0:13]} 80. Qf6+ {[%emt 0:0:3]} Ke4 {[%emt 0:0:1]} 81. Qf4# {[%emt 0:0:3] Kxd5} 1-0

[Event "FIDE World Rapid-ch Open 2018"]
[White "Kazhgaleyev, Murtas"]
[Black "Novikov, Stanislav"]
[Site "St. Petersburg"]
[Round "3.59"]
[Annotator "ChessBase"]
[Result "0-1"]
[Date "2018.12.26"]
[WhiteElo "2587"]
[BlackElo "2540"]
[PlyCount "98"]
[TimeControl "900+10"]

1. d4 {[%emt 0:0:0]} g6 {[%emt 0:0:0]} 2. c4 {[%emt 0:0:0]} Bg7 {[%emt 0:0:0]} 3. e4 {[%emt 0:0:0]} d6 {[%emt 0:0:0]} 4. Nc3 {[%emt 0:0:0]} c6 {[%emt 0:0:0]
} 5. h3 {[%emt 0:0:12]} a6 {[%emt 0:0:7]} 6. Nf3 {[%emt 0:0:0]} Nd7 {[%emt 0:0:18]} 7. Be2 {[%emt 0:0:15]} b5 {[%emt 0:0:4]} 8. 0-0 {[%emt 0:0:10]
} Bb7 {[%emt 0:0:38]} 9. a3 {[%emt 0:0:18]} Qc7 {[%emt 0:0:21]
} 10. Be3 {[%emt 0:0:14]} Ngf6 {[%emt 0:0:7]} 11. Rc1 {[%emt 0:0:10]} Qb8 {[%emt 0:0:15]
} 12. Qd2 {[%emt 0:0:26]} 0-0 {[%emt 0:0:25]} 13. Rfd1 {[%emt 0:2:12]
} Re8 {[%emt 0:1:35]} 14. b4 {[%emt 0:0:9]} e5 {[%emt 0:1:56]
} 15. dxe5 {[%emt 0:0:10]} dxe5 {[%emt 0:0:2]} 16. Qc2 {[%emt 0:0:51]} Bf8 {[%emt 0:2:38]} 17. Qb3 {[%emt 0:1:39]} h6 {[%emt 0:0:22]} 18. a4 {[%emt 0:0:0]} bxa4 {[%emt 0:1:4]} 19. Nxa4 {[%emt 0:0:3]} c5 {[%emt 0:0:49]} 20. bxc5 {[%emt 0:0:53]} Bc6 {[%emt 0:2:22]} 21. Qa2 {[%emt 0:0:52]} Ra7 {[%emt 0:1:40]
} 22. Rd6 {[%emt 0:0:49]} Bxa4 {[%emt 0:0:49]} 23. Qxa4 {[%emt 0:0:11]
} Nxc5 {[%emt 0:0:12]} 24. Bxc5 {[%emt 0:0:8]} Bxd6 {[%emt 0:0:0]} 25. Bxa7 {[%emt 0:1:5]} Qxa7 {[%emt 0:0:1]} 26. Ne1 {[%emt 0:0:46]
} Rc8 {[%emt 0:1:13]} 27. Bf3 {[%emt 0:0:14]} Nd7 {[%emt 0:0:49]} 28. Qd1 {[%emt 0:0:2]
} Bc5 {[%emt 0:0:15]} 29. Nd3 {[%emt 0:0:4]} h5 {[%emt 0:0:0]} 30. g4 {[%emt 0:2:10]} h4 {[%emt 0:0:27]} 31. g5 {[%emt 0:0:42]} Bd4 {[%emt 0:0:17]
} 32. Bg4 {[%emt 0:0:6]} Rb8 {[%emt 0:0:21]} 33. Bxd7 {[%emt 0:0:43]
} Qxd7 {[%emt 0:0:1]} 34. Kg2 {[%emt 0:0:32]} Qc6 {[%emt 0:0:0]} 35. Qe2 {[%emt 0:0:31]} a5 {[%emt 0:0:8]} 36. Ne1 {[%emt 0:2:3]} Rb4 {[%emt 0:0:31]} 37. c5 {[%emt 0:0:50]} Rb5 {[%emt 0:0:12]} 38. Nd3 {[%emt 0:0:0]} a4 {[%emt 0:0:2]} 39. Kf3 {[%emt 0:0:8]} Rb3 {[%emt 0:0:8]} 40. Kg2 {[%emt 0:0:13]} a3 {[%emt 0:0:2]} 41. Rc2 {[%emt 0:0:4]} Kg7 {[%emt 0:0:0]} 42. Kg1 {[%emt 0:0:3]} Qa6 {[%emt 0:0:23]} 43. c6 {[%emt 0:0:7]} Qxd3 {[%emt 0:0:13]} 44. Qxd3 {[%emt 0:0:7]} Rxd3 {[%emt 0:0:1]} 45. c7 {[%emt 0:0:1]
} a2 {[%emt 0:0:4]} 46. c8=Q {[%emt 0:0:10]} a1=Q+ {[%emt 0:0:0]} 47. Kg2 {[%emt 0:0:4]} Rd1 {[%emt 0:0:23]} 48. Qc6 {[%emt 0:0:13]} Rg1+ {[%emt 0:0:5]} 49. Kf3 {[%emt 0:0:8]} Qd1+ {[%emt 0:0:9]} 0-1

[Event "FIDE World Rapid-ch Open 2018"]
[White "Lintchevski, Daniil"]
[Black "Lomasov, Semyon"]
[Site "St. Petersburg"]
[Round "3.60"]
[Annotator "ChessBase"]
[Result "1/2-1/2"]
[Date "2018.12.26"]
[WhiteElo "2516"]
[BlackElo "2553"]
[PlyCount "105"]
[TimeControl "900+10"]

1. Nf3 {[%emt 0:0:0]} Nf6 {[%emt 0:0:0]} 2. c4 {[%emt 0:0:0]} c5 {[%emt 0:0:0]
} 3. Nc3 {[%emt 0:0:2]} Nc6 {[%emt 0:0:0]} 4. e3 {[%emt 0:0:0]} e6 {[%emt 0:0:0]} 5. d4 {[%emt 0:0:4]} d5 {[%emt 0:0:0]} 6. a3 {[%emt 0:0:4]
} a6 {[%emt 0:0:1]} 7. dxc5 {[%emt 0:0:5]} Bxc5 {[%emt 0:0:0]} 8. b4 {[%emt 0:0:3]} Bd6 {[%emt 0:0:3]} 9. Bb2 {[%emt 0:1:12]} 0-0 {[%emt 0:0:6]
} 10. cxd5 {[%emt 0:0:20]} exd5 {[%emt 0:0:9]} 11. Be2 {[%emt 0:0:4]
} Bg4 {[%emt 0:0:44]} 12. 0-0 {[%emt 0:0:31]} Rc8 {[%emt 0:0:0]} 13. Rc1 {[%emt 0:0:42]} Re8 {[%emt 0:0:25]} 14. g3 {[%emt 0:0:56]} Bb8 {[%emt 0:0:35]} 15. Na4 {[%emt 0:0:6]} Ne4 {[%emt 0:0:37]} 16. Nc5 {[%emt 0:0:42]
} Bh3 {[%emt 0:2:10]} 17. Re1 {[%emt 0:0:14]} Qe7 {[%emt 0:0:0]} 18. Qxd5 {[%emt 0:1:57]} Nxc5 {[%emt 0:2:49]} 19. Qxc5 {[%emt 0:1:16]} Qxc5 {[%emt 0:2:25]} 20. bxc5 {[%emt 0:1:0]} h6 21. Bf1 {[%emt 0:1:11]} Bxf1 {[%emt 0:1:13]} 22. Kxf1 {[%emt 0:0:4]} Ba7 {[%emt 0:1:11]} 23. Rc3 {[%emt 0:0:14]
} Ne5 {[%emt 0:0:24]} 24. Nxe5 {[%emt 0:1:29]} Rxe5 {[%emt 0:0:0]} 25. c6 {[%emt 0:0:38]} bxc6 {[%emt 0:0:33]} 26. Rxc6 {[%emt 0:0:6]} Rxc6 {[%emt 0:0:2]} 27. Bxe5 {[%emt 0:0:1]} f6 {[%emt 0:0:16]} 28. Bb2 {[%emt 0:0:35]
} Rc2 {[%emt 0:0:15]} 29. Re2 {[%emt 0:0:6]} Rc7 {[%emt 0:0:0]} 30. Rd2 {[%emt 0:0:12]} Bc5 {[%emt 0:0:33]} 31. Rc2 {[%emt 0:0:12]} Kf7 {[%emt 0:0:2]} 32. Bd4 {[%emt 0:0:26]} Bd6 {[%emt 0:0:1]} 33. Rxc7+ {[%emt 0:0:4]
} Bxc7 {[%emt 0:0:2]} 34. Ke2 {[%emt 0:0:3]} h5 {[%emt 0:0:0]} 35. Kd3 {[%emt 0:1:25]} Ke6 {[%emt 0:0:1]} 36. e4 {[%emt 0:0:29]} g6 {[%emt 0:0:33]
} 37. f3 {[%emt 0:0:18]} f5 {[%emt 0:0:3]} 38. Bf2 {[%emt 0:0:0]} g5 {[%emt 0:0:10]} 39. a4 {[%emt 0:0:25]} g4 {[%emt 0:0:3]} 40. f4 {[%emt 0:0:6]} h4 {[%emt 0:0:14]} 41. gxh4 {[%emt 0:1:8]} Bxf4 {[%emt 0:0:0]} 42. Bg3 {[%emt 0:0:4]} Bc1 {[%emt 0:0:22]} 43. exf5+ {[%emt 0:0:8]
} Kxf5 {[%emt 0:0:2]} 44. Kd4 {[%emt 0:0:4]} Bd2 {[%emt 0:0:2]} 45. Kc5 {[%emt 0:0:30]
} Kg6 {[%emt 0:0:6]} 46. Kb6 {[%emt 0:0:27]} a5 {[%emt 0:0:0]} 47. Bc7 {[%emt 0:0:17]} Kh5 {[%emt 0:0:3]} 48. Bd8 {[%emt 0:0:1]} Bf4 {[%emt 0:0:38]} 49. Kxa5 {[%emt 0:0:4]} Bxh2 {[%emt 0:0:2]} 50. Kb5 {[%emt 0:0:2]
} g3 {[%emt 0:0:28]} 51. Bc7 {[%emt 0:0:1]} Kxh4 {[%emt 0:0:0]} 52. a5 {[%emt 0:0:1]} Kh3 {[%emt 0:0:9]} 53. Bxg3 1/2-1/2